Workbook

Sheet Chapter 12
B1: Excel Templates to accompany Operations Management, Seventh Canadian Edition
B2: Prepared by: Dr. Aries Sutantoputra, Southern Alberta Institute of Technology (SAIT)
B3: Copyright © 2021 by McGraw Hill Ryerson All rights reserved.
B5: Chapter Twelve - Aggregate Operations Planning
C7: Templates: | D7: Aggregate Planning (B)
D8: Transportation Model (Basic)
D9: Master Scheduling (B)
D11: (B) - includes Basic template
D13: Examples
D15: Solved Problems
B19: See the Aggregate Planning tutorial for a demonstration of the Aggregate Planning template.
B21: See the Transportation Model tutorial for a demonstration of the Transportation Model template.

Sheet Aggregate Planning
A1: Aggregate Planning | D1: Basic
A2: <Back | E2: Number of periods: | F2: 6
A4: Period | E4: 1 | F4: 2 | G4: 3 | H4: 4 | I4: 5 | J4: 6 | K4: 7 | L4: 8 | M4: 9 | N4: 10 | O4: 11 | P4: 12 | Q4: Total
A5: Forecast | E5: 2000 | F5: 2000 | G5: 3000 | H5: 4000 | I5: 5000 | J5: 2000 | Q5: =SUM(E5:P5) -> 18000
A6: Output
B7: Regular | E7: 2800 | F7: 2800 | G7: 2800 | H7: 2800 | I7: 2800 | J7: 2800 | Q7: =SUM(E7:P7) -> 16800
B8: Part Time | Q8: =SUM(E8:P8) -> 0
B9: Overtime | Q9: =SUM(E9:P9) -> 0
B10: Subcontract | Q10: =SUM(E10:P10) -> 0
A11: Output - Forecast | E11: =+SUM(E7:E10)-E5 -> 800 | F11: =+SUM(F7:F10)-F5 -> 800 | G11: -200 | H11: -1200 | I11: -2200 | J11: 800 | K11: 0 | L11: 0 | M11: 0 | N11: 0 | O11: 0 | P11: 0 | Q11: =SUM(E11:P11) -> -1200
A12: Inventory
B13: Beginning | E13: 1000 | F13: =IF(F4>counter11,0,E14) -> 1800 | G13: 2600 | H13: 2400 | I13: 1200 | J13: 0 | K13: 0 | L13: 0 | M13: 0 | N13: 0 | O13: 0 | P13: 0
B14: Ending | E14: =IF(E4>counter11,0,IF(E13+E11>=0,E13+E11,0)) -> 1800 | F14: =IF(F4>counter11,0,IF(F13+F11-E16>=0,F13+F11-E16,0)) -> 2600 | G14: 2400 | H14: 1200 | I14: 0 | J14: 0 | K14: 0 | L14: 0 | M14: 0 | N14: 0 | O14: 0 | P14: 0
B15: Average | E15: =IF(E4>counter11,0,(E13+E14)/2) -> 1400 | F15: 2200 | G15: 2500 | H15: 1800 | I15: 600 | J15: 0 | K15: 0 | L15: 0 | M15: 0 | N15: 0 | O15: 0 | P15: 0 | Q15: =SUM(E15:P15) -> 8500
A16: Backlog | E16: =IF(E4>counter11,0,IF(E13+E11<0,-(E13+E11),0)) -> 0 | F16: =IF(F4>counter11,0,IF(F13+F11-E16<0,-(F13+F11-E16),0)) -> 0 | G16: 0 | H16: 0 | I16: 1000 | J16: 200 | K16: 0 | L16: 0 | M16: 0 | N16: 0 | O16: 0 | P16: 0 | Q16: =SUM(E16:P16) -> 1200
A17: Costs:
B18: Regular | C18: @ | D18: 100 | E18: =+E7*$D18 -> 280000 | F18: 280000 | G18: 280000 | H18: 280000 | I18: 280000 | J18: 280000 | K18: 0 | L18: 0 | M18: 0 | N18: 0 | O18: 0 | P18: 0 | Q18: =SUM(E18:P18) -> 1680000
B19: Part Time | C19: @ | D19: 100 | E19: 0 | F19: 0 | G19: 0 | H19: 0 | I19: 0 | J19: 0 | K19: 0 | L19: 0 | M19: 0 | N19: 0 | O19: 0 | P19: 0 | Q19: 0
B20: Overtime | C20: @ | D20: 150 | E20: 0 | F20: 0 | G20: 0 | H20: 0 | I20: 0 | J20: 0 | K20: 0 | L20: 0 | M20: 0 | N20: 0 | O20: 0 | P20: 0 | Q20: 0
B21: Subcontract | C21: @ | E21: 0 | F21: 0 | G21: 0 | H21: 0 | I21: 0 | J21: 0 | K21: 0 | L21: 0 | M21: 0 | N21: 0 | O21: 0 | P21: 0 | Q21: 0
B22: Hire/Layoff | Q22: 0
B23: Inventory | C23: @ | D23: 10 | E23: =+E15*$D23 -> 14000 | F23: 22000 | G23: 25000 | H23: 18000 | I23: 6000 | J23: 0 | K23: 0 | L23: 0 | M23: 0 | N23: 0 | O23: 0 | P23: 0 | Q23: 85000
B24: Back orders | C24: @ | D24: 150 | E24: 0 | F24: 0 | G24: 0 | H24: 0 | I24: 150000 | J24: 30000 | K24: 0 | L24: 0 | M24: 0 | N24: 0 | O24: 0 | P24: 0 | Q24: 180000
A25: Total | E25: =SUM(E18:E24) -> 294000 | F25: 302000 | G25: 305000 | H25: 298000 | I25: 436000 | J25: 310000 | K25: 0 | L25: 0 | M25: 0 | N25: 0 | O25: 0 | P25: 0 | Q25: 1945000
A27: See the Aggregate Planning tutorial for a demonstration of this template.
E28: 1 | F28: 2 | G28: 3 | H28: 4 | I28: 5 | J28: 6 | K28: 7 | L28: 8 | M28: 9 | N28: 10 | O28: 11 | P28: 12
A29: Cumulative Forecast | E29: =E5 -> 2000 | F29: =E29+F5 -> 4000 | G29: =F29+G5 -> 7000 | H29: 11000 | I29: 16000 | J29: 18000 | K29: 18000 | L29: 18000 | M29: 18000 | N29: 18000 | O29: 18000 | P29: 18000
A30: Cumulative Production | E30: =SUM(E7:E10) -> 2800 | F30: =E30+SUM(F7:F10) -> 5600 | G30: =F30+SUM(G7:G10) -> 8400 | H30: 11200 | I30: 14000 | J30: 16800 | K30: 16800 | L30: 16800 | M30: 16800 | N30: 16800 | O30: 16800 | P30: 16800
A31: Ending Inventory | E31: =IF(E30>E29,E30-E29,"") -> 800 | F31: =IF(F30>F29,F30-F29,"") -> 1600 | G31: 1400 | H31: 200
A32: Backlog | E32: =IF(E29>E30,E29-E30,"") ->  | F32: =IF(F29>F30,F29-F30,"") ->  | I32: 2000 | J32: 1200 | K32: 1200 | L32: 1200 | M32: 1200 | N32: 1200 | O32: 1200 | P32: 1200
A46: Basic Template: | C46: You can simply copy the basic template below and paste into another worksheet.
A47: ^Top | C47: After pasting into another worksheet you should delete unneeded columns.
A50: Aggregate Planning
A53: Period | E53: 1 | F53: 2 | G53: 3 | H53: 4 | I53: 5 | J53: 6 | K53: 7 | L53: 8 | M53: 9 | N53: 10 | O53: 11 | P53: 12 | Q53: Total
A54: Forecast | E54: 200 | F54: 200 | G54: 300 | H54: 400 | I54: 500 | J54: 200 | Q54: =SUM(E54:P54) -> 1800
A55: Output
B56: Regular | E56: 300 | F56: 300 | G56: 300 | H56: 300 | I56: 300 | J56: 300 | Q56: =SUM(E56:P56) -> 1800
B57: Part Time | Q57: =SUM(E57:P57) -> 0
B58: Overtime | Q58: =SUM(E58:P58) -> 0
B59: Subcontract | Q59: =SUM(E59:P59) -> 0
A60: Output - Forecast | E60: =+SUM(E56:E59)-E54 -> 100 | F60: =+SUM(F56:F59)-F54 -> 100 | G60: =+SUM(G56:G59)-G54 -> 0 | H60: -100 | I60: -200 | J60: 100 | K60: 0 | L60: 0 | M60: 0 | N60: 0 | O60: 0 | P60: 0 | Q60: =SUM(E60:P60) -> 0
A61: Inventory
B62: Beginning | F62: =E63 -> 100 | G62: =F63 -> 200 | H62: 200 | I62: 100 | J62: 0 | K62: 0 | L62: 0 | M62: 0 | N62: 0 | O62: 0 | P62: 0
B63: Ending | E63: =IF(E62+E60>=0,E62+E60,0) -> 100 | F63: =IF(F62+F60-E65>=0,F62+F60-E65,0) -> 200 | G63: =IF(G62+G60-F65>=0,G62+G60-F65,0) -> 200 | H63: 100 | I63: 0 | J63: 0 | K63: 0 | L63: 0 | M63: 0 | N63: 0 | O63: 0 | P63: 0
B64: Average | E64: =(E62+E63)/2 -> 50 | F64: =(F62+F63)/2 -> 150 | G64: =(G62+G63)/2 -> 200 | H64: 150 | I64: 50 | J64: 0 | K64: 0 | L64: 0 | M64: 0 | N64: 0 | O64: 0 | P64: 0 | Q64: =SUM(E64:P64) -> 600
A65: Backlog | E65: =IF(E62+E60<0,-(E62+E60),0) -> 0 | F65: =IF(F62+F60-E65<0,-(F62+F60-E65),0) -> 0 | G65: =IF(G62+G60-F65<0,-(G62+G60-F65),0) -> 0 | H65: 0 | I65: 100 | J65: 0 | K65: 0 | L65: 0 | M65: 0 | N65: 0 | O65: 0 | P65: 0 | Q65: =SUM(E65:P65) -> 100
A66: Costs:
B67: Regular | C67: @ | D67: 2 | E67: =+E56*$D67 -> 600 | F67: 600 | G67: 600 | H67: 600 | I67: 600 | J67: 600 | K67: 0 | L67: 0 | M67: 0 | N67: 0 | O67: 0 | P67: 0 | Q67: =SUM(E67:P67) -> 3600
B68: Part Time | C68: @ | E68: 0 | F68: 0 | G68: 0 | H68: 0 | I68: 0 | J68: 0 | K68: 0 | L68: 0 | M68: 0 | N68: 0 | O68: 0 | P68: 0 | Q68: 0
B69: Overtime | C69: @ | D69: 3 | E69: 0 | F69: 0 | G69: 0 | H69: 0 | I69: 0 | J69: 0 | K69: 0 | L69: 0 | M69: 0 | N69: 0 | O69: 0 | P69: 0 | Q69: 0
B70: Subcontract | C70: @ | D70: 6 | E70: 0 | F70: 0 | G70: 0 | H70: 0 | I70: 0 | J70: 0 | K70: 0 | L70: 0 | M70: 0 | N70: 0 | O70: 0 | P70: 0 | Q70: 0
B71: Hire/Layoff | Q71: 0
B72: Inventory | C72: @ | D72: 1 | E72: =+E64*$D72 -> 50 | F72: 150 | G72: 200 | H72: 150 | I72: 50 | J72: 0 | K72: 0 | L72: 0 | M72: 0 | N72: 0 | O72: 0 | P72: 0 | Q72: 600
B73: Back orders | C73: @ | D73: 5 | E73: 0 | F73: 0 | G73: 0 | H73: 0 | I73: 500 | J73: 0 | K73: 0 | L73: 0 | M73: 0 | N73: 0 | O73: 0 | P73: 0 | Q73: 500
A74: Total | E74: =SUM(E67:E73) -> 650 | F74: 750 | G74: 800 | H74: 750 | I74: 1150 | J74: 600 | K74: 0 | L74: 0 | M74: 0 | N74: 0 | O74: 0 | P74: 0 | Q74: 4700

Sheet Aggregate Planning (1)
A1: Aggregate Planning | D1: Basic
A2: <Back | E2: Number of periods: | F2: 6
A4: Period | E4: 1 | F4: 2 | G4: 3 | H4: 4 | I4: 5 | J4: 6 | K4: 7 | L4: 8 | M4: 9 | N4: 10 | O4: 11 | P4: 12 | Q4: Total
A5: Forecast | E5: 2000 | F5: 2000 | G5: 3000 | H5: 4000 | I5: 5000 | J5: 2000 | Q5: =SUM(E5:P5) -> 18000
A6: Output
B7: Regular | E7: 2800 | F7: 2800 | G7: 2800 | H7: 2800 | I7: 2800 | J7: 2800 | Q7: =SUM(E7:P7) -> 16800
B8: Part Time | Q8: =SUM(E8:P8) -> 0
B9: Overtime | G9: 400 | H9: 400 | I9: 400 | Q9: =SUM(E9:P9) -> 1200
B10: Subcontract | Q10: =SUM(E10:P10) -> 0
A11: Output - Forecast | E11: =+SUM(E7:E10)-E5 -> 800 | F11: =+SUM(F7:F10)-F5 -> 800 | G11: 200 | H11: -800 | I11: -1800 | J11: 800 | K11: 0 | L11: 0 | M11: 0 | N11: 0 | O11: 0 | P11: 0 | Q11: =SUM(E11:P11) -> 0
A12: Inventory
B13: Beginning | E13: 1000 | F13: =IF(F4>counter11,0,E14) -> 1800 | G13: 2600 | H13: 2800 | I13: 2000 | J13: 200 | K13: 0 | L13: 0 | M13: 0 | N13: 0 | O13: 0 | P13: 0
B14: Ending | E14: =IF(E4>counter11,0,IF(E13+E11>=0,E13+E11,0)) -> 1800 | F14: =IF(F4>counter11,0,IF(F13+F11-E16>=0,F13+F11-E16,0)) -> 2600 | G14: 2800 | H14: 2000 | I14: 200 | J14: 1000 | K14: 0 | L14: 0 | M14: 0 | N14: 0 | O14: 0 | P14: 0
B15: Average | E15: =IF(E4>counter11,0,(E13+E14)/2) -> 1400 | F15: 2200 | G15: 2700 | H15: 2400 | I15: 1100 | J15: 600 | K15: 0 | L15: 0 | M15: 0 | N15: 0 | O15: 0 | P15: 0 | Q15: =SUM(E15:P15) -> 10400
A16: Backlog | E16: =IF(E4>counter11,0,IF(E13+E11<0,-(E13+E11),0)) -> 0 | F16: =IF(F4>counter11,0,IF(F13+F11-E16<0,-(F13+F11-E16),0)) -> 0 | G16: 0 | H16: 0 | I16: 0 | J16: 0 | K16: 0 | L16: 0 | M16: 0 | N16: 0 | O16: 0 | P16: 0 | Q16: =SUM(E16:P16) -> 0
A17: Costs:
B18: Regular | C18: @ | D18: 100 | E18: =+E7*$D18 -> 280000 | F18: 280000 | G18: 280000 | H18: 280000 | I18: 280000 | J18: 280000 | K18: 0 | L18: 0 | M18: 0 | N18: 0 | O18: 0 | P18: 0 | Q18: =SUM(E18:P18) -> 1680000
B19: Part Time | C19: @ | D19: 100 | E19: 0 | F19: 0 | G19: 0 | H19: 0 | I19: 0 | J19: 0 | K19: 0 | L19: 0 | M19: 0 | N19: 0 | O19: 0 | P19: 0 | Q19: 0
B20: Overtime | C20: @ | D20: 150 | E20: 0 | F20: 0 | G20: 60000 | H20: 60000 | I20: 60000 | J20: 0 | K20: 0 | L20: 0 | M20: 0 | N20: 0 | O20: 0 | P20: 0 | Q20: 180000
B21: Subcontract | C21: @ | E21: 0 | F21: 0 | G21: 0 | H21: 0 | I21: 0 | J21: 0 | K21: 0 | L21: 0 | M21: 0 | N21: 0 | O21: 0 | P21: 0 | Q21: 0
B22: Hire/Layoff | Q22: 0
B23: Inventory | C23: @ | D23: 10 | E23: =+E15*$D23 -> 14000 | F23: 22000 | G23: 27000 | H23: 24000 | I23: 11000 | J23: 6000 | K23: 0 | L23: 0 | M23: 0 | N23: 0 | O23: 0 | P23: 0 | Q23: 104000
B24: Back orders | C24: @ | D24: 150 | E24: 0 | F24: 0 | G24: 0 | H24: 0 | I24: 0 | J24: 0 | K24: 0 | L24: 0 | M24: 0 | N24: 0 | O24: 0 | P24: 0 | Q24: 0
A25: Total | E25: =SUM(E18:E24) -> 294000 | F25: 302000 | G25: 367000 | H25: 364000 | I25: 351000 | J25: 286000 | K25: 0 | L25: 0 | M25: 0 | N25: 0 | O25: 0 | P25: 0 | Q25: 1964000
A27: See the Aggregate Planning tutorial for a demonstration of this template.
E28: 1 | F28: 2 | G28: 3 | H28: 4 | I28: 5 | J28: 6 | K28: 7 | L28: 8 | M28: 9 | N28: 10 | O28: 11 | P28: 12
A29: Cumulative Forecast | E29: =E5 -> 2000 | F29: =E29+F5 -> 4000 | G29: =F29+G5 -> 7000 | H29: 11000 | I29: 16000 | J29: 18000 | K29: 18000 | L29: 18000 | M29: 18000 | N29: 18000 | O29: 18000 | P29: 18000
A30: Cumulative Production | E30: =SUM(E7:E10) -> 2800 | F30: =E30+SUM(F7:F10) -> 5600 | G30: =F30+SUM(G7:G10) -> 8800 | H30: 12000 | I30: 15200 | J30: 18000 | K30: 18000 | L30: 18000 | M30: 18000 | N30: 18000 | O30: 18000 | P30: 18000
A31: Ending Inventory | E31: =IF(E30>E29,E30-E29,"") -> 800 | F31: =IF(F30>F29,F30-F29,"") -> 1600 | G31: 1800 | H31: 1000
A32: Backlog | E32: =IF(E29>E30,E29-E30,"") ->  | F32: =IF(F29>F30,F29-F30,"") ->  | I32: 800
A46: Basic Template: | C46: You can simply copy the basic template below and paste into another worksheet.
A47: ^Top | C47: After pasting into another worksheet you should delete unneeded columns.
A50: Aggregate Planning
A53: Period | E53: 1 | F53: 2 | G53: 3 | H53: 4 | I53: 5 | J53: 6 | K53: 7 | L53: 8 | M53: 9 | N53: 10 | O53: 11 | P53: 12 | Q53: Total
A54: Forecast | E54: 200 | F54: 200 | G54: 300 | H54: 400 | I54: 500 | J54: 200 | Q54: =SUM(E54:P54) -> 1800
A55: Output
B56: Regular | E56: 300 | F56: 300 | G56: 300 | H56: 300 | I56: 300 | J56: 300 | Q56: =SUM(E56:P56) -> 1800
B57: Part Time | Q57: =SUM(E57:P57) -> 0
B58: Overtime | Q58: =SUM(E58:P58) -> 0
B59: Subcontract | Q59: =SUM(E59:P59) -> 0
A60: Output - Forecast | E60: =+SUM(E56:E59)-E54 -> 100 | F60: =+SUM(F56:F59)-F54 -> 100 | G60: =+SUM(G56:G59)-G54 -> 0 | H60: -100 | I60: -200 | J60: 100 | K60: 0 | L60: 0 | M60: 0 | N60: 0 | O60: 0 | P60: 0 | Q60: =SUM(E60:P60) -> 0
A61: Inventory
B62: Beginning | F62: =E63 -> 100 | G62: =F63 -> 200 | H62: 200 | I62: 100 | J62: 0 | K62: 0 | L62: 0 | M62: 0 | N62: 0 | O62: 0 | P62: 0
B63: Ending | E63: =IF(E62+E60>=0,E62+E60,0) -> 100 | F63: =IF(F62+F60-E65>=0,F62+F60-E65,0) -> 200 | G63: =IF(G62+G60-F65>=0,G62+G60-F65,0) -> 200 | H63: 100 | I63: 0 | J63: 0 | K63: 0 | L63: 0 | M63: 0 | N63: 0 | O63: 0 | P63: 0
B64: Average | E64: =(E62+E63)/2 -> 50 | F64: =(F62+F63)/2 -> 150 | G64: =(G62+G63)/2 -> 200 | H64: 150 | I64: 50 | J64: 0 | K64: 0 | L64: 0 | M64: 0 | N64: 0 | O64: 0 | P64: 0 | Q64: =SUM(E64:P64) -> 600
A65: Backlog | E65: =IF(E62+E60<0,-(E62+E60),0) -> 0 | F65: =IF(F62+F60-E65<0,-(F62+F60-E65),0) -> 0 | G65: =IF(G62+G60-F65<0,-(G62+G60-F65),0) -> 0 | H65: 0 | I65: 100 | J65: 0 | K65: 0 | L65: 0 | M65: 0 | N65: 0 | O65: 0 | P65: 0 | Q65: =SUM(E65:P65) -> 100
A66: Costs:
B67: Regular | C67: @ | D67: 2 | E67: =+E56*$D67 -> 600 | F67: 600 | G67: 600 | H67: 600 | I67: 600 | J67: 600 | K67: 0 | L67: 0 | M67: 0 | N67: 0 | O67: 0 | P67: 0 | Q67: =SUM(E67:P67) -> 3600
B68: Part Time | C68: @ | E68: 0 | F68: 0 | G68: 0 | H68: 0 | I68: 0 | J68: 0 | K68: 0 | L68: 0 | M68: 0 | N68: 0 | O68: 0 | P68: 0 | Q68: 0
B69: Overtime | C69: @ | D69: 3 | E69: 0 | F69: 0 | G69: 0 | H69: 0 | I69: 0 | J69: 0 | K69: 0 | L69: 0 | M69: 0 | N69: 0 | O69: 0 | P69: 0 | Q69: 0
B70: Subcontract | C70: @ | D70: 6 | E70: 0 | F70: 0 | G70: 0 | H70: 0 | I70: 0 | J70: 0 | K70: 0 | L70: 0 | M70: 0 | N70: 0 | O70: 0 | P70: 0 | Q70: 0
B71: Hire/Layoff | Q71: 0
B72: Inventory | C72: @ | D72: 1 | E72: =+E64*$D72 -> 50 | F72: 150 | G72: 200 | H72: 150 | I72: 50 | J72: 0 | K72: 0 | L72: 0 | M72: 0 | N72: 0 | O72: 0 | P72: 0 | Q72: 600
B73: Back orders | C73: @ | D73: 5 | E73: 0 | F73: 0 | G73: 0 | H73: 0 | I73: 500 | J73: 0 | K73: 0 | L73: 0 | M73: 0 | N73: 0 | O73: 0 | P73: 0 | Q73: 500
A74: Total | E74: =SUM(E67:E73) -> 650 | F74: 750 | G74: 800 | H74: 750 | I74: 1150 | J74: 600 | K74: 0 | L74: 0 | M74: 0 | N74: 0 | O74: 0 | P74: 0 | Q74: 4700

Sheet Aggregate Planning (2)
A1: Aggregate Planning | D1: Basic
A2: <Back | E2: Number of periods: | F2: 6
A4: Period | E4: 1 | F4: 2 | G4: 3 | H4: 4 | I4: 5 | J4: 6 | K4: 7 | L4: 8 | M4: 9 | N4: 10 | O4: 11 | P4: 12 | Q4: Total
A5: Forecast | E5: 2000 | F5: 2000 | G5: 3000 | H5: 4000 | I5: 5000 | J5: 2000 | Q5: =SUM(E5:P5) -> 18000
A6: Output
B7: Regular | E7: 2800 | F7: 2800 | G7: 2800 | H7: 2800 | I7: 2800 | J7: 2800 | Q7: =SUM(E7:P7) -> 16800
B8: Part Time | H8: 600 | I8: 600 | Q8: =SUM(E8:P8) -> 1200
B9: Overtime | Q9: =SUM(E9:P9) -> 0
B10: Subcontract | Q10: =SUM(E10:P10) -> 0
A11: Output - Forecast | E11: =+SUM(E7:E10)-E5 -> 800 | F11: =+SUM(F7:F10)-F5 -> 800 | G11: -200 | H11: -600 | I11: -1600 | J11: 800 | K11: 0 | L11: 0 | M11: 0 | N11: 0 | O11: 0 | P11: 0 | Q11: =SUM(E11:P11) -> 0
A12: Inventory
B13: Beginning | E13: 1000 | F13: =IF(F4>counter11,0,E14) -> 1800 | G13: 2600 | H13: 2400 | I13: 1800 | J13: 200 | K13: 0 | L13: 0 | M13: 0 | N13: 0 | O13: 0 | P13: 0
B14: Ending | E14: =IF(E4>counter11,0,IF(E13+E11>=0,E13+E11,0)) -> 1800 | F14: =IF(F4>counter11,0,IF(F13+F11-E16>=0,F13+F11-E16,0)) -> 2600 | G14: 2400 | H14: 1800 | I14: 200 | J14: 1000 | K14: 0 | L14: 0 | M14: 0 | N14: 0 | O14: 0 | P14: 0
B15: Average | E15: =IF(E4>counter11,0,(E13+E14)/2) -> 1400 | F15: 2200 | G15: 2500 | H15: 2100 | I15: 1000 | J15: 600 | K15: 0 | L15: 0 | M15: 0 | N15: 0 | O15: 0 | P15: 0 | Q15: =SUM(E15:P15) -> 9800
A16: Backlog | E16: =IF(E4>counter11,0,IF(E13+E11<0,-(E13+E11),0)) -> 0 | F16: =IF(F4>counter11,0,IF(F13+F11-E16<0,-(F13+F11-E16),0)) -> 0 | G16: 0 | H16: 0 | I16: 0 | J16: 0 | K16: 0 | L16: 0 | M16: 0 | N16: 0 | O16: 0 | P16: 0 | Q16: =SUM(E16:P16) -> 0
A17: Costs:
B18: Regular | C18: @ | D18: 100 | E18: =+E7*$D18 -> 280000 | F18: 280000 | G18: 280000 | H18: 280000 | I18: 280000 | J18: 280000 | K18: 0 | L18: 0 | M18: 0 | N18: 0 | O18: 0 | P18: 0 | Q18: =SUM(E18:P18) -> 1680000
B19: Part Time | C19: @ | D19: 100 | E19: 0 | F19: 0 | G19: 0 | H19: 60000 | I19: 60000 | J19: 0 | K19: 0 | L19: 0 | M19: 0 | N19: 0 | O19: 0 | P19: 0 | Q19: 120000
B20: Overtime | C20: @ | D20: 150 | E20: 0 | F20: 0 | G20: 0 | H20: 0 | I20: 0 | J20: 0 | K20: 0 | L20: 0 | M20: 0 | N20: 0 | O20: 0 | P20: 0 | Q20: 0
B21: Subcontract | C21: @ | E21: 0 | F21: 0 | G21: 0 | H21: 0 | I21: 0 | J21: 0 | K21: 0 | L21: 0 | M21: 0 | N21: 0 | O21: 0 | P21: 0 | Q21: 0
B22: Hire/Layoff | H22: 15000 | Q22: 15000
B23: Inventory | C23: @ | D23: 10 | E23: =+E15*$D23 -> 14000 | F23: 22000 | G23: 25000 | H23: 21000 | I23: 10000 | J23: 6000 | K23: 0 | L23: 0 | M23: 0 | N23: 0 | O23: 0 | P23: 0 | Q23: 98000
B24: Back orders | C24: @ | D24: 150 | E24: 0 | F24: 0 | G24: 0 | H24: 0 | I24: 0 | J24: 0 | K24: 0 | L24: 0 | M24: 0 | N24: 0 | O24: 0 | P24: 0 | Q24: 0
A25: Total | E25: =SUM(E18:E24) -> 294000 | F25: 302000 | G25: 305000 | H25: 376000 | I25: 350000 | J25: 286000 | K25: 0 | L25: 0 | M25: 0 | N25: 0 | O25: 0 | P25: 0 | Q25: 1913000
A27: See the Aggregate Planning tutorial for a demonstration of this template.
E28: 1 | F28: 2 | G28: 3 | H28: 4 | I28: 5 | J28: 6 | K28: 7 | L28: 8 | M28: 9 | N28: 10 | O28: 11 | P28: 12
A29: Cumulative Forecast | E29: =E5 -> 2000 | F29: =E29+F5 -> 4000 | G29: =F29+G5 -> 7000 | H29: 11000 | I29: 16000 | J29: 18000 | K29: 18000 | L29: 18000 | M29: 18000 | N29: 18000 | O29: 18000 | P29: 18000
A30: Cumulative Production | E30: =SUM(E7:E10) -> 2800 | F30: =E30+SUM(F7:F10) -> 5600 | G30: =F30+SUM(G7:G10) -> 8400 | H30: 11800 | I30: 15200 | J30: 18000 | K30: 18000 | L30: 18000 | M30: 18000 | N30: 18000 | O30: 18000 | P30: 18000
A31: Ending Inventory | E31: =IF(E30>E29,E30-E29,"") -> 800 | F31: =IF(F30>F29,F30-F29,"") -> 1600 | G31: 1400 | H31: 800
A32: Backlog | E32: =IF(E29>E30,E29-E30,"") ->  | F32: =IF(F29>F30,F29-F30,"") ->  | I32: 800
A46: Basic Template: | C46: You can simply copy the basic template below and paste into another worksheet.
A47: ^Top | C47: After pasting into another worksheet you should delete unneeded columns.
A50: Aggregate Planning
A53: Period | E53: 1 | F53: 2 | G53: 3 | H53: 4 | I53: 5 | J53: 6 | K53: 7 | L53: 8 | M53: 9 | N53: 10 | O53: 11 | P53: 12 | Q53: Total
A54: Forecast | E54: 200 | F54: 200 | G54: 300 | H54: 400 | I54: 500 | J54: 200 | Q54: =SUM(E54:P54) -> 1800
A55: Output
B56: Regular | E56: 300 | F56: 300 | G56: 300 | H56: 300 | I56: 300 | J56: 300 | Q56: =SUM(E56:P56) -> 1800
B57: Part Time | Q57: =SUM(E57:P57) -> 0
B58: Overtime | Q58: =SUM(E58:P58) -> 0
B59: Subcontract | Q59: =SUM(E59:P59) -> 0
A60: Output - Forecast | E60: =+SUM(E56:E59)-E54 -> 100 | F60: =+SUM(F56:F59)-F54 -> 100 | G60: =+SUM(G56:G59)-G54 -> 0 | H60: -100 | I60: -200 | J60: 100 | K60: 0 | L60: 0 | M60: 0 | N60: 0 | O60: 0 | P60: 0 | Q60: =SUM(E60:P60) -> 0
A61: Inventory
B62: Beginning | F62: =E63 -> 100 | G62: =F63 -> 200 | H62: 200 | I62: 100 | J62: 0 | K62: 0 | L62: 0 | M62: 0 | N62: 0 | O62: 0 | P62: 0
B63: Ending | E63: =IF(E62+E60>=0,E62+E60,0) -> 100 | F63: =IF(F62+F60-E65>=0,F62+F60-E65,0) -> 200 | G63: =IF(G62+G60-F65>=0,G62+G60-F65,0) -> 200 | H63: 100 | I63: 0 | J63: 0 | K63: 0 | L63: 0 | M63: 0 | N63: 0 | O63: 0 | P63: 0
B64: Average | E64: =(E62+E63)/2 -> 50 | F64: =(F62+F63)/2 -> 150 | G64: =(G62+G63)/2 -> 200 | H64: 150 | I64: 50 | J64: 0 | K64: 0 | L64: 0 | M64: 0 | N64: 0 | O64: 0 | P64: 0 | Q64: =SUM(E64:P64) -> 600
A65: Backlog | E65: =IF(E62+E60<0,-(E62+E60),0) -> 0 | F65: =IF(F62+F60-E65<0,-(F62+F60-E65),0) -> 0 | G65: =IF(G62+G60-F65<0,-(G62+G60-F65),0) -> 0 | H65: 0 | I65: 100 | J65: 0 | K65: 0 | L65: 0 | M65: 0 | N65: 0 | O65: 0 | P65: 0 | Q65: =SUM(E65:P65) -> 100
A66: Costs:
B67: Regular | C67: @ | D67: 2 | E67: =+E56*$D67 -> 600 | F67: 600 | G67: 600 | H67: 600 | I67: 600 | J67: 600 | K67: 0 | L67: 0 | M67: 0 | N67: 0 | O67: 0 | P67: 0 | Q67: =SUM(E67:P67) -> 3600
B68: Part Time | C68: @ | E68: 0 | F68: 0 | G68: 0 | H68: 0 | I68: 0 | J68: 0 | K68: 0 | L68: 0 | M68: 0 | N68: 0 | O68: 0 | P68: 0 | Q68: 0
B69: Overtime | C69: @ | D69: 3 | E69: 0 | F69: 0 | G69: 0 | H69: 0 | I69: 0 | J69: 0 | K69: 0 | L69: 0 | M69: 0 | N69: 0 | O69: 0 | P69: 0 | Q69: 0
B70: Subcontract | C70: @ | D70: 6 | E70: 0 | F70: 0 | G70: 0 | H70: 0 | I70: 0 | J70: 0 | K70: 0 | L70: 0 | M70: 0 | N70: 0 | O70: 0 | P70: 0 | Q70: 0
B71: Hire/Layoff | Q71: 0
B72: Inventory | C72: @ | D72: 1 | E72: =+E64*$D72 -> 50 | F72: 150 | G72: 200 | H72: 150 | I72: 50 | J72: 0 | K72: 0 | L72: 0 | M72: 0 | N72: 0 | O72: 0 | P72: 0 | Q72: 600
B73: Back orders | C73: @ | D73: 5 | E73: 0 | F73: 0 | G73: 0 | H73: 0 | I73: 500 | J73: 0 | K73: 0 | L73: 0 | M73: 0 | N73: 0 | O73: 0 | P73: 0 | Q73: 500
A74: Total | E74: =SUM(E67:E73) -> 650 | F74: 750 | G74: 800 | H74: 750 | I74: 1150 | J74: 600 | K74: 0 | L74: 0 | M74: 0 | N74: 0 | O74: 0 | P74: 0 | Q74: 4700

Sheet Transportation Model
A1: Transportation Model (Basic) | D1: Notes | E1: Use Solver on Data Ribbon to solve - see notes below.
A2: <Back | E2: Do not change or delete unshaded cells.
A3: Input Matrix: | C3: Demand for: | D3: Period 1 | E3: Period 2 | F3: Period 3 | G3: Period 4 | H3: Period 5 | I3: Period 6
C4: Beginning Inventory | D4: 0 | E4: 1 | F4: 2 | J4: 100 | K4: Supply Available
B5: =D3 -> Period 1 | C5: Regular Time | D5: 60 | E5: 61 | F5: 62 | J5: 500
C6: Overtime | D6: 80 | E6: 81 | F6: 82 | J6: 50
C7: Subcontract | D7: 90 | E7: 91 | F7: 92 | J7: 120
B8: =E3 -> Period 2 | C8: Regular Time | D8: 63 | E8: 60 | F8: 61 | J8: 500
C9: Overtime | D9: 83 | E9: 80 | F9: 81 | J9: 50
C10: Subcontract | D10: 93 | E10: 90 | F10: 91 | J10: 120
B11: =F3 -> Period 3 | C11: Regular Time | D11: 66 | E11: 63 | F11: 60 | J11: 500
C12: Overtime | D12: 86 | E12: 83 | F12: 80 | J12: 50
C13: Subcontract | D13: 96 | E13: 93 | F13: 90 | J13: 100
B14: =G3 -> Period 4 | C14: Regular Time
C15: Overtime
C16: Subcontract
B17: =H3 -> Period 5 | C17: Regular Time
C18: Overtime
C19: Subcontract
B20: =I3 -> Period 6 | C20: Regular Time
C21: Overtime
C22: Subcontract
D23: 550 | E23: 700 | F23: 750
D24: Demand Required | L24: Total Supply = | M24: =SUM(J4:J22) -> 2090
A25: Solution Matrix: | L25: Total Demand = | M25: =SUM(D23:I23) -> 2000
C26: Demand for: | D26: =D3 -> Period 1 | E26: Period 2 | F26: Period 3 | G26: Period 4 | H26: Period 5 | I26: Period 6 | J26: 0
C27: Beginning Inventory | D27: 100 | E27: 0 | F27: 0 | G27: 0 | H27: 0 | I27: 0 | J27: =SUM(D27:I27) -> 100 | K27: Supply Used
B28: =B5 -> Period 1 | C28: Regular Time | D28: 400 | E28: 0 | F28: 100 | G28: 0 | H28: 0 | I28: 0 | J28: 500
C29: Overtime | D29: 50 | E29: 0 | F29: 0 | G29: 0 | H29: 0 | I29: 0 | J29: 50
C30: Subcontract | D30: 0 | E30: 30 | F30: 0 | G30: 0 | H30: 0 | I30: 0 | J30: 30
B31: =B8 -> Period 2 | C31: Regular Time | D31: 0 | E31: 500 | F31: 0 | G31: 0 | H31: 0 | I31: 0 | J31: 500
C32: Overtime | D32: 0 | E32: 50 | F32: 0 | G32: 0 | H32: 0 | I32: 0 | J32: 50
C33: Subcontract | D33: 0 | E33: 120 | F33: 0 | G33: 0 | H33: 0 | I33: 0 | J33: 120
B34: =B11 -> Period 3 | C34: Regular Time | D34: 0 | E34: 0 | F34: 500 | G34: 0 | H34: 0 | I34: 0 | J34: 500
C35: Overtime | D35: 0 | E35: 0 | F35: 50 | G35: 0 | H35: 0 | I35: 0 | J35: 50
C36: Subcontract | D36: 0 | E36: 0 | F36: 100 | G36: 0 | H36: 0 | I36: 0 | J36: 100
B37: =B14 -> Period 4 | C37: Regular Time | D37: 0 | E37: 0 | F37: 0 | G37: 0 | H37: 0 | I37: 0 | J37: 0
C38: Overtime | D38: 0 | E38: 0 | F38: 0 | G38: 0 | H38: 0 | I38: 0 | J38: 0
C39: Subcontract | D39: 0 | E39: 0 | F39: 0 | G39: 0 | H39: 0 | I39: 0 | J39: 0
B40: =B17 -> Period 5 | C40: Regular Time | D40: 0 | E40: 0 | F40: 0 | G40: 0 | H40: 0 | I40: 0 | J40: 0
C41: Overtime | D41: 0 | E41: 0 | F41: 0 | G41: 0 | H41: 0 | I41: 0 | J41: 0
C42: Subcontract | D42: 0 | E42: 0 | F42: 0 | G42: 0 | H42: 0 | I42: 0 | J42: 0
B43: =B20 -> Period 6 | C43: Regular Time | D43: 0 | E43: 0 | F43: 0 | G43: 0 | H43: 0 | I43: 0 | J43: 0
C44: Overtime | D44: 0 | E44: 0 | F44: 0 | G44: 0 | H44: 0 | I44: 0 | J44: 0
C45: Subcontract | D45: 0 | E45: 0 | F45: 0 | G45: 0 | H45: 0 | I45: 0 | J45: 0
D46: =SUM(D27:D45) -> 550 | E46: 700 | F46: 750 | G46: 0 | H46: 0 | I46: 0
D47: Demand Met | L47: Total Cost = | M47: =SUMPRODUCT(D4:I22,D27:I45) -> 124730
A51: Notes: | C51: See the Transportation tutorial for a demonstration of a similar template.
C52: Unneeded rows and columns have been hidden in the above template.
B54: 1. | C54: Enter the problem into the Input Matrix (top shaded area):
D55: Enter the names of periods in the top row (optional).
D56: Enter the total of production and carrying costs in row produced and column used.
D57: Enter the supply available from each production source in in the right column.
D58: Enter the demand required in each period in the bottom row.
D59: Unused rows or columns should contain only blanks and you may hide unused rows or columns.
D60: Unbalanced problems with supply exceeding demand can be solved without using a Dummy column.
D61: Unbalanced problems with demand exceeding supply are not feasible and will require a Dummy row.
B63: 2. | C63: You can manually create solutions in the Solution Matrix (bottom shaded area):
D64: Enter amounts in the row produced and column used in the middle of the Solution Matrix (shaded yellow).
D65: Compare the supply used with supply available and the demand met with demand required to determine feasibility.
D66: Observe the total cost to determine the optimal solution.
D67: You can use heuristics (e.g. stepping-stone method) to improve the solution.
C68: Warning: you should not delete or make any changes in the un-shaded portions of the template.
B70: 3. | C70: Using Solver to find the optimal solution:
D71: Select the Data ribbon, the Solver Add-in must be available in the Analysis group (see note below to add-in Solver).
D72: Press Solver in the Analysis group of the Data ribbon.
D73: Press Solve in Solver Parameters dialog box (the parameters have all been set).
D74: Read the message at the top of the Solver Results dialog box and then press OK.
D75: The template is set up to minimize cost, to maximize you can select Max in the Solver Parameters dialog box.
C76: Warning: any changes in the Solver Parameters dialog box will remain in effect and affect future solutions.
A78: More... | B78: 4. | C78: Notes on the Solver solution:
D79: Small numbers in scientific notation (e.g. 2.4091E-11) reflect the precision of Solver and can be treated as zero.
D80: If total demand exceeds total supply then problem is not feasible and you will get an error message.
D81: Solver occasionally gives a "false" not feasible result (due to precision/tolerance settings), you might re-run Solver.
D82: If a problem has alternate optimal solutions, re-solving with Solver may (or may not) give a different solution.
D83: Existence of alternate optimal solutions may be indicated by the Sensitivity Report (an option in the Solver Results
E84: dialog box) by a solution cell that has both a Final Value and Reduced Cost of zero.
B86: 5. | C86: How to Add-In Solver if it does not appear in the Analysis group of the Data ribbon:
D87: Press the Office Button (extreme upper left-hand corner of screen).
D88: Press Excel Options (bottom of dialog box).
D89: Select Add-Ins (left hand side of dialog box).
D90: Press Go... beside Manage: Excel Add-Ins (bottom of dialog box).
D91: Select Solver Add-In (checkmark will appear) in list of Add-ins available, and press OK.
A92: ^Top

Sheet Master Scheduling
A1: Master Scheduling | D1: Basic
A2: <Back
B4: Week | E4: 0 | F4: 1 | G4: 2 | H4: 3 | I4: 4 | J4: 5 | K4: 6 | L4: 7 | M4: 8
B5: Forecast | F5: 70 | G5: 70 | H5: 70 | I5: 70
B6: Customer Orders
B7: (committed) | F7: 80 | G7: 50 | H7: 30 | I7: 10
B8: Projected on-hand
B9: inventory | F9: =+E9-MAX(F5:F7)+F10 -> 20 | G9: 50 | H9: 80 | I9: 10 | J9: 10 | K9: 10 | L9: 10 | M9: 10
B10: MPS | F10: 100 | G10: 100 | H10: 100
B11: ATP | F11: =E9+F10-F7-IF(G10>0,0,G7+IF(H10>0,0,H7+IF(I10>0,0,I7+IF(J10>0,0,J7+IF(K10>0,0,K7+IF(L10>0,0,L7+IF(M10>0,0,M7))))))) -> 20 | G11: =IF(G10<=0,"",G10-G7-IF(H10>0,0,H7+IF(I10>0,0,I7+IF(J10>0,0,J7+IF(K10>0,0,K7+IF(L10>0,0,L7+IF(M10>0,0,M7))))))) -> 50 | H11: =IF(H10<=0,"",H10-H7-IF(I10>0,0,I7+IF(J10>0,0,J7+IF(K10>0,0,K7+IF(L10>0,0,L7+IF(M10>0,0,M7)))))) -> 60 | I11: =IF(I10<=0,"",I10-I7-IF(J10>0,0,J7+IF(K10>0,0,K7+IF(L10>0,0,L7+IF(M10>0,0,M7))))) ->  | J11: =IF(J10<=0,"",J10-J7-IF(K10>0,0,K7+IF(L10>0,0,L7+IF(M10>0,0,M7)))) ->  | K11: =IF(K10<=0,"",K10-K7-IF(L10>0,0,L7+IF(M10>0,0,M7))) ->  | L11: =IF(L10<=0,"",L10-L7-IF(M10>0,0,M7)) ->  | M11: =IF(M10<=0,"",M10-M7) -> 
A36: Basic Template: | C36: You can simply copy the basic template below and paste into another worksheet.
A37: ^Top
A40: Master Scheduling
B43: Week | E43: 0 | F43: 1 | G43: 2 | H43: 3 | I43: 4 | J43: 5 | K43: 6 | L43: 7 | M43: 8
B44: Forecast | F44: 70 | G44: 70 | H44: 70 | I44: 70
B45: Customer Orders
B46: (committed) | F46: 80 | G46: 50 | H46: 30 | I46: 10
B47: Projected on-hand
B48: inventory | F48: =+E48-MAX(F44:F46)+F49 -> 20 | G48: 50 | H48: 80 | I48: 10 | J48: 10 | K48: 10 | L48: 10 | M48: 10
B49: MPS | F49: 100 | G49: 100 | H49: 100
B50: ATP | F50: =E48+F49-F46-IF(G49>0,0,G46+IF(H49>0,0,H46+IF(I49>0,0,I46+IF(J49>0,0,J46+IF(K49>0,0,K46+IF(L49>0,0,L46+IF(M49>0,0,M46))))))) -> 20 | G50: =IF(G49<=0,"",G49-G46-IF(H49>0,0,H46+IF(I49>0,0,I46+IF(J49>0,0,J46+IF(K49>0,0,K46+IF(L49>0,0,L46+IF(M49>0,0,M46))))))) -> 50 | H50: =IF(H49<=0,"",H49-H46-IF(I49>0,0,I46+IF(J49>0,0,J46+IF(K49>0,0,K46+IF(L49>0,0,L46+IF(M49>0,0,M46)))))) -> 60 | I50: =IF(I49<=0,"",I49-I46-IF(J49>0,0,J46+IF(K49>0,0,K46+IF(L49>0,0,L46+IF(M49>0,0,M46))))) ->  | J50: =IF(J49<=0,"",J49-J46-IF(K49>0,0,K46+IF(L49>0,0,L46+IF(M49>0,0,M46)))) ->  | K50: =IF(K49<=0,"",K49-K46-IF(L49>0,0,L46+IF(M49>0,0,M46))) ->  | L50: =IF(L49<=0,"",L49-L46-IF(M49>0,0,M46)) ->  | M50: =IF(M49<=0,"",M49-M46) -> 

Sheet Examples
A1: Chapter 12 - Examples | E1: Note: This worksheet displays results only, you must copy the shaded
A2: <Back | E2: area into the corresponding template to make additional calculations.
C4: Aggregate Planning
G5: Number of periods: | H5: 6
A7: 12-1. | C7: Period | G7: 1 | H7: 2 | I7: 3 | J7: 4 | K7: 5 | L7: 6 | M7: 7 | N7: 8 | O7: 9 | P7: 10 | Q7: 11 | R7: 12 | S7: Total
C8: Forecast | G8: 2000 | H8: 2000 | I8: 3000 | J8: 4000 | K8: 5000 | L8: 2000 | S8: 18000
C9: Output
D10: Regular | G10: 2800 | H10: 2800 | I10: 2800 | J10: 2800 | K10: 2800 | L10: 2800 | S10: 16800
D11: Part Time | S11: 0
D12: Overtime | S12: 0
D13: Subcontract | S13: 0
C14: Output - Forecast | G14: 800 | H14: 800 | I14: -200 | J14: -1200 | K14: -2200 | L14: 800 | M14: 0 | N14: 0 | O14: 0 | P14: 0 | Q14: 0 | R14: 0 | S14: -1200
C15: Inventory
D16: Beginning | G16: 1000 | H16: 1800 | I16: 2600 | J16: 2400 | K16: 1200 | L16: 0 | M16: 0 | N16: 0 | O16: 0 | P16: 0 | Q16: 0 | R16: 0
D17: Ending | G17: 1800 | H17: 2600 | I17: 2400 | J17: 1200 | K17: 0 | L17: 0 | M17: 0 | N17: 0 | O17: 0 | P17: 0 | Q17: 0 | R17: 0
D18: Average | G18: 1400 | H18: 2200 | I18: 2500 | J18: 1800 | K18: 600 | L18: 0 | M18: 0 | N18: 0 | O18: 0 | P18: 0 | Q18: 0 | R18: 0 | S18: 8500
C19: Backlog | G19: 0 | H19: 0 | I19: 0 | J19: 0 | K19: 1000 | L19: 200 | M19: 0 | N19: 0 | O19: 0 | P19: 0 | Q19: 0 | R19: 0 | S19: 1200
C20: Costs:
D21: Regular | E21: @ | F21: 100 | G21: 280000 | H21: 280000 | I21: 280000 | J21: 280000 | K21: 280000 | L21: 280000 | M21: 0 | N21: 0 | O21: 0 | P21: 0 | Q21: 0 | R21: 0 | S21: 1680000
D22: Part Time | E22: @ | F22: 100 | G22: 0 | H22: 0 | I22: 0 | J22: 0 | K22: 0 | L22: 0 | M22: 0 | N22: 0 | O22: 0 | P22: 0 | Q22: 0 | R22: 0 | S22: 0
D23: Overtime | E23: @ | F23: 150 | G23: 0 | H23: 0 | I23: 0 | J23: 0 | K23: 0 | L23: 0 | M23: 0 | N23: 0 | O23: 0 | P23: 0 | Q23: 0 | R23: 0 | S23: 0
D24: Subcontract | E24: @ | G24: 0 | H24: 0 | I24: 0 | J24: 0 | K24: 0 | L24: 0 | M24: 0 | N24: 0 | O24: 0 | P24: 0 | Q24: 0 | R24: 0 | S24: 0
D25: Hire/Layoff | S25: 0
D26: Inventory | E26: @ | F26: 10 | G26: 14000 | H26: 22000 | I26: 25000 | J26: 18000 | K26: 6000 | L26: 0 | M26: 0 | N26: 0 | O26: 0 | P26: 0 | Q26: 0 | R26: 0 | S26: 85000
D27: Back orders | E27: @ | F27: 150 | G27: 0 | H27: 0 | I27: 0 | J27: 0 | K27: 150000 | L27: 30000 | M27: 0 | N27: 0 | O27: 0 | P27: 0 | Q27: 0 | R27: 0 | S27: 180000
C28: Total | G28: 294000 | H28: 302000 | I28: 305000 | J28: 298000 | K28: 436000 | L28: 310000 | M28: 0 | N28: 0 | O28: 0 | P28: 0 | Q28: 0 | R28: 0 | S28: 1945000
C30: See the Aggregate Planning tutorial for a demonstration of this template.
G31: 1 | H31: 2 | I31: 3 | J31: 4 | K31: 5 | L31: 6 | M31: 7 | N31: 8 | O31: 9 | P31: 10 | Q31: 11 | R31: 12
C32: Cumulative Forecast | G32: 2000 | H32: 4000 | I32: 7000 | J32: 11000 | K32: 16000 | L32: 18000 | M32: 18000 | N32: 18000 | O32: 18000 | P32: 18000 | Q32: 18000 | R32: 18000
C33: Cumulative Production | G33: 2800 | H33: 5600 | I33: 8400 | J33: 11200 | K33: 14000 | L33: 16800 | M33: 16800 | N33: 16800 | O33: 16800 | P33: 16800 | Q33: 16800 | R33: 16800
C34: Ending Inventory | G34: 800 | H34: 1600 | I34: 1400 | J34: 200
C35: Backlog | K35: 2000 | L35: 1200 | M35: 1200 | N35: 1200 | O35: 1200 | P35: 1200 | Q35: 1200 | R35: 1200
A38: 12-2. | C38: Aggregate Planning
G39: Number of periods: | H39: 6
C41: Period | G41: 1 | H41: 2 | I41: 3 | J41: 4 | K41: 5 | L41: 6 | M41: 7 | N41: 8 | O41: 9 | P41: 10 | Q41: 11 | R41: 12 | S41: Total
C42: Forecast | G42: 2000 | H42: 2000 | I42: 3000 | J42: 4000 | K42: 5000 | L42: 2000 | S42: 18000
C43: Output
D44: Regular | G44: 2800 | H44: 2800 | I44: 2800 | J44: 2800 | K44: 2800 | L44: 2800 | S44: 16800
D45: Part Time | S45: 0
D46: Overtime | I46: 400 | J46: 400 | K46: 400 | S46: 1200
D47: Subcontract | S47: 0
C48: Output - Forecast | G48: 800 | H48: 800 | I48: 200 | J48: -800 | K48: -1800 | L48: 800 | M48: 0 | N48: 0 | O48: 0 | P48: 0 | Q48: 0 | R48: 0 | S48: 0
C49: Inventory
D50: Beginning | G50: 1000 | H50: 1800 | I50: 2600 | J50: 2800 | K50: 2000 | L50: 200 | M50: 0 | N50: 0 | O50: 0 | P50: 0 | Q50: 0 | R50: 0
D51: Ending | G51: 1800 | H51: 2600 | I51: 2800 | J51: 2000 | K51: 200 | L51: 1000 | M51: 0 | N51: 0 | O51: 0 | P51: 0 | Q51: 0 | R51: 0
D52: Average | G52: 1400 | H52: 2200 | I52: 2700 | J52: 2400 | K52: 1100 | L52: 600 | M52: 0 | N52: 0 | O52: 0 | P52: 0 | Q52: 0 | R52: 0 | S52: 10400
C53: Backlog | G53: 0 | H53: 0 | I53: 0 | J53: 0 | K53: 0 | L53: 0 | M53: 0 | N53: 0 | O53: 0 | P53: 0 | Q53: 0 | R53: 0 | S53: 0
C54: Costs:
D55: Regular | E55: @ | F55: 100 | G55: 280000 | H55: 280000 | I55: 280000 | J55: 280000 | K55: 280000 | L55: 280000 | M55: 0 | N55: 0 | O55: 0 | P55: 0 | Q55: 0 | R55: 0 | S55: 1680000
D56: Part Time | E56: @ | F56: 100 | G56: 0 | H56: 0 | I56: 0 | J56: 0 | K56: 0 | L56: 0 | M56: 0 | N56: 0 | O56: 0 | P56: 0 | Q56: 0 | R56: 0 | S56: 0
D57: Overtime | E57: @ | F57: 150 | G57: 0 | H57: 0 | I57: 60000 | J57: 60000 | K57: 60000 | L57: 0 | M57: 0 | N57: 0 | O57: 0 | P57: 0 | Q57: 0 | R57: 0 | S57: 180000
D58: Subcontract | E58: @ | G58: 0 | H58: 0 | I58: 0 | J58: 0 | K58: 0 | L58: 0 | M58: 0 | N58: 0 | O58: 0 | P58: 0 | Q58: 0 | R58: 0 | S58: 0
D59: Hire/Layoff | S59: 0
D60: Inventory | E60: @ | F60: 10 | G60: 14000 | H60: 22000 | I60: 27000 | J60: 24000 | K60: 11000 | L60: 6000 | M60: 0 | N60: 0 | O60: 0 | P60: 0 | Q60: 0 | R60: 0 | S60: 104000
D61: Back orders | E61: @ | F61: 150 | G61: 0 | H61: 0 | I61: 0 | J61: 0 | K61: 0 | L61: 0 | M61: 0 | N61: 0 | O61: 0 | P61: 0 | Q61: 0 | R61: 0 | S61: 0
C62: Total | G62: 294000 | H62: 302000 | I62: 367000 | J62: 364000 | K62: 351000 | L62: 286000 | M62: 0 | N62: 0 | O62: 0 | P62: 0 | Q62: 0 | R62: 0 | S62: 1964000
C64: See the Aggregate Planning tutorial for a demonstration of this template.
G65: 1 | H65: 2 | I65: 3 | J65: 4 | K65: 5 | L65: 6 | M65: 7 | N65: 8 | O65: 9 | P65: 10 | Q65: 11 | R65: 12
C66: Cumulative Forecast | G66: 2000 | H66: 4000 | I66: 7000 | J66: 11000 | K66: 16000 | L66: 18000 | M66: 18000 | N66: 18000 | O66: 18000 | P66: 18000 | Q66: 18000 | R66: 18000
C67: Cumulative Production | G67: 2800 | H67: 5600 | I67: 8800 | J67: 12000 | K67: 15200 | L67: 18000 | M67: 18000 | N67: 18000 | O67: 18000 | P67: 18000 | Q67: 18000 | R67: 18000
C68: Ending Inventory | G68: 800 | H68: 1600 | I68: 1800 | J68: 1000
C69: Backlog | K69: 800
A72: 12-3. | C72: Aggregate Planning
G73: Number of periods: | H73: 6
C75: Period | G75: 1 | H75: 2 | I75: 3 | J75: 4 | K75: 5 | L75: 6 | M75: 7 | N75: 8 | O75: 9 | P75: 10 | Q75: 11 | R75: 12 | S75: Total
C76: Forecast | G76: 2000 | H76: 2000 | I76: 3000 | J76: 4000 | K76: 5000 | L76: 2000 | S76: 18000
C77: Output
D78: Regular | G78: 2800 | H78: 2800 | I78: 2800 | J78: 2800 | K78: 2800 | L78: 2800 | S78: 16800
D79: Part Time | J79: 600 | K79: 600 | S79: 1200
D80: Overtime | S80: 0
D81: Subcontract | S81: 0
C82: Output - Forecast | G82: 800 | H82: 800 | I82: -200 | J82: -600 | K82: -1600 | L82: 800 | M82: 0 | N82: 0 | O82: 0 | P82: 0 | Q82: 0 | R82: 0 | S82: 0
C83: Inventory
D84: Beginning | G84: 1000 | H84: 1800 | I84: 2600 | J84: 2400 | K84: 1800 | L84: 200 | M84: 0 | N84: 0 | O84: 0 | P84: 0 | Q84: 0 | R84: 0
D85: Ending | G85: 1800 | H85: 2600 | I85: 2400 | J85: 1800 | K85: 200 | L85: 1000 | M85: 0 | N85: 0 | O85: 0 | P85: 0 | Q85: 0 | R85: 0
D86: Average | G86: 1400 | H86: 2200 | I86: 2500 | J86: 2100 | K86: 1000 | L86: 600 | M86: 0 | N86: 0 | O86: 0 | P86: 0 | Q86: 0 | R86: 0 | S86: 9800
C87: Backlog | G87: 0 | H87: 0 | I87: 0 | J87: 0 | K87: 0 | L87: 0 | M87: 0 | N87: 0 | O87: 0 | P87: 0 | Q87: 0 | R87: 0 | S87: 0
C88: Costs:
D89: Regular | E89: @ | F89: 100 | G89: 280000 | H89: 280000 | I89: 280000 | J89: 280000 | K89: 280000 | L89: 280000 | M89: 0 | N89: 0 | O89: 0 | P89: 0 | Q89: 0 | R89: 0 | S89: 1680000
D90: Part Time | E90: @ | F90: 100 | G90: 0 | H90: 0 | I90: 0 | J90: 60000 | K90: 60000 | L90: 0 | M90: 0 | N90: 0 | O90: 0 | P90: 0 | Q90: 0 | R90: 0 | S90: 120000
D91: Overtime | E91: @ | F91: 150 | G91: 0 | H91: 0 | I91: 0 | J91: 0 | K91: 0 | L91: 0 | M91: 0 | N91: 0 | O91: 0 | P91: 0 | Q91: 0 | R91: 0 | S91: 0
D92: Subcontract | E92: @ | G92: 0 | H92: 0 | I92: 0 | J92: 0 | K92: 0 | L92: 0 | M92: 0 | N92: 0 | O92: 0 | P92: 0 | Q92: 0 | R92: 0 | S92: 0
D93: Hire/Layoff | J93: 15000 | S93: 15000
D94: Inventory | E94: @ | F94: 10 | G94: 14000 | H94: 22000 | I94: 25000 | J94: 21000 | K94: 10000 | L94: 6000 | M94: 0 | N94: 0 | O94: 0 | P94: 0 | Q94: 0 | R94: 0 | S94: 98000
D95: Back orders | E95: @ | F95: 150 | G95: 0 | H95: 0 | I95: 0 | J95: 0 | K95: 0 | L95: 0 | M95: 0 | N95: 0 | O95: 0 | P95: 0 | Q95: 0 | R95: 0 | S95: 0
C96: Total | G96: 294000 | H96: 302000 | I96: 305000 | J96: 376000 | K96: 350000 | L96: 286000 | M96: 0 | N96: 0 | O96: 0 | P96: 0 | Q96: 0 | R96: 0 | S96: 1913000
C98: See the Aggregate Planning tutorial for a demonstration of this template.
G99: 1 | H99: 2 | I99: 3 | J99: 4 | K99: 5 | L99: 6 | M99: 7 | N99: 8 | O99: 9 | P99: 10 | Q99: 11 | R99: 12
C100: Cumulative Forecast | G100: 2000 | H100: 4000 | I100: 7000 | J100: 11000 | K100: 16000 | L100: 18000 | M100: 18000 | N100: 18000 | O100: 18000 | P100: 18000 | Q100: 18000 | R100: 18000
C101: Cumulative Production | G101: 2800 | H101: 5600 | I101: 8400 | J101: 11800 | K101: 15200 | L101: 18000 | M101: 18000 | N101: 18000 | O101: 18000 | P101: 18000 | Q101: 18000 | R101: 18000
C102: Ending Inventory | G102: 800 | H102: 1600 | I102: 1400 | J102: 800
C103: Backlog | K103: 800
A107: 12-5. | B107: Transportation Model
B109: Input Matrix: | D109: Demand for: | E109: Period 1 | F109: Period 2 | G109: Period 3 | H109: Period 4 | I109: Period 5 | J109: Period 6
D110: Beginning Inventory | E110: 0 | F110: 1 | G110: 2 | K110: 100 | L110: Supply Available
C111: Period 1 | D111: Regular Time | E111: 60 | F111: 61 | G111: 62 | K111: 500
D112: Overtime | E112: 80 | F112: 81 | G112: 82 | K112: 50
D113: Subcontract | E113: 90 | F113: 91 | G113: 92 | K113: 120
C114: Period 2 | D114: Regular Time | E114: 63 | F114: 60 | G114: 61 | K114: 500
D115: Overtime | E115: 83 | F115: 80 | G115: 81 | K115: 50
D116: Subcontract | E116: 93 | F116: 90 | G116: 91 | K116: 120
C117: Period 3 | D117: Regular Time | E117: 66 | F117: 63 | G117: 60 | K117: 500
D118: Overtime | E118: 86 | F118: 83 | G118: 80 | K118: 50
D119: Subcontract | E119: 96 | F119: 93 | G119: 90 | K119: 100
C120: Period 4 | D120: Regular Time
D121: Overtime
D122: Subcontract
C123: Period 5 | D123: Regular Time
D124: Overtime
D125: Subcontract
C126: Period 6 | D126: Regular Time
D127: Overtime
D128: Subcontract
E129: 550 | F129: 700 | G129: 750
E130: Demand Required | M130: Total Supply = | N130: 2090
B131: Solution Matrix: | M131: Total Demand = | N131: 2000
D132: Demand for: | E132: Period 1 | F132: Period 2 | G132: Period 3 | H132: Period 4 | I132: Period 5 | J132: Period 6 | K132: 0
D133: Beginning Inventory | E133: 100 | F133: 0 | G133: 0 | H133: 0 | I133: 0 | J133: 0 | K133: 100 | L133: Supply Used
C134: Period 1 | D134: Regular Time | E134: 400 | F134: 0 | G134: 100 | H134: 0 | I134: 0 | J134: 0 | K134: 500
D135: Overtime | E135: 50 | F135: 0 | G135: 0 | H135: 0 | I135: 0 | J135: 0 | K135: 50
D136: Subcontract | E136: 0 | F136: 30 | G136: 0 | H136: 0 | I136: 0 | J136: 0 | K136: 30
C137: Period 2 | D137: Regular Time | E137: 0 | F137: 500 | G137: 0 | H137: 0 | I137: 0 | J137: 0 | K137: 500
D138: Overtime | E138: 0 | F138: 50 | G138: 0 | H138: 0 | I138: 0 | J138: 0 | K138: 50
D139: Subcontract | E139: 0 | F139: 120 | G139: 0 | H139: 0 | I139: 0 | J139: 0 | K139: 120
C140: Period 3 | D140: Regular Time | E140: 0 | F140: 0 | G140: 500 | H140: 0 | I140: 0 | J140: 0 | K140: 500
D141: Overtime | E141: 0 | F141: 0 | G141: 50 | H141: 0 | I141: 0 | J141: 0 | K141: 50
D142: Subcontract | E142: 0 | F142: 0 | G142: 100 | H142: 0 | I142: 0 | J142: 0 | K142: 100
C143: Period 4 | D143: Regular Time | E143: 0 | F143: 0 | G143: 0 | H143: 0 | I143: 0 | J143: 0 | K143: 0
D144: Overtime | E144: 0 | F144: 0 | G144: 0 | H144: 0 | I144: 0 | J144: 0 | K144: 0
D145: Subcontract | E145: 0 | F145: 0 | G145: 0 | H145: 0 | I145: 0 | J145: 0 | K145: 0
C146: Period 5 | D146: Regular Time | E146: 0 | F146: 0 | G146: 0 | H146: 0 | I146: 0 | J146: 0 | K146: 0
D147: Overtime | E147: 0 | F147: 0 | G147: 0 | H147: 0 | I147: 0 | J147: 0 | K147: 0
D148: Subcontract | E148: 0 | F148: 0 | G148: 0 | H148: 0 | I148: 0 | J148: 0 | K148: 0
C149: Period 6 | D149: Regular Time | E149: 0 | F149: 0 | G149: 0 | H149: 0 | I149: 0 | J149: 0 | K149: 0
D150: Overtime | E150: 0 | F150: 0 | G150: 0 | H150: 0 | I150: 0 | J150: 0 | K150: 0
D151: Subcontract | E151: 0 | F151: 0 | G151: 0 | H151: 0 | I151: 0 | J151: 0 | K151: 0
E152: 550 | F152: 700 | G152: 750 | H152: 0 | I152: 0 | J152: 0
E153: Demand Met | M153: Total Cost = | N153: 124730

Sheet Solved Problems
A1: Chapter 12 - Solved Problems | E1: Note: This worksheet displays results only, you must copy the shaded
A2: <Back | E2: area into the corresponding template to make additional calculations.
A4: 1. | B4: Aggregate Planning
F5: Number of periods: | G5: 9
B7: Period | F7: 1 | G7: 2 | H7: 3 | I7: 4 | J7: 5 | K7: 6 | L7: 7 | M7: 8 | N7: 9 | O7: Total
B8: Forecast | F8: 190 | G8: 230 | H8: 260 | I8: 280 | J8: 210 | K8: 170 | L8: 160 | M8: 260 | N8: 180 | O8: 1940
B9: Output
C10: Regular | F10: 220 | G10: 220 | H10: 220 | I10: 220 | J10: 220 | K10: 210 | L10: 210 | M10: 210 | N10: 210 | O10: 1940
C11: Part Time | O11: 0
C12: Overtime | O12: 0
C13: Subcontract | O13: 0
B14: Output - Forecast | F14: 30 | G14: -10 | H14: -40 | I14: -60 | J14: 10 | K14: 40 | L14: 50 | M14: -50 | N14: 30 | O14: 0
B15: Inventory
C16: Beginning | G16: 30 | H16: 20 | I16: 0 | J16: 0 | K16: 0 | L16: 0 | M16: 20 | N16: 0
C17: Ending | F17: 30 | G17: 20 | H17: 0 | I17: 0 | J17: 0 | K17: 0 | L17: 20 | M17: 0 | N17: 0
C18: Average | F18: 15 | G18: 25 | H18: 10 | I18: 0 | J18: 0 | K18: 0 | L18: 10 | M18: 10 | N18: 0 | O18: 70
B19: Backlog | F19: 0 | G19: 0 | H19: 20 | I19: 80 | J19: 70 | K19: 30 | L19: 0 | M19: 30 | N19: 0 | O19: 230
B20: Costs:
C21: Regular | D21: @ | E21: 6 | F21: 1320 | G21: 1320 | H21: 1320 | I21: 1320 | J21: 1320 | K21: 1260 | L21: 1260 | M21: 1260 | N21: 1260 | O21: 11640
C22: Part Time | D22: @ | F22: 0 | G22: 0 | H22: 0 | I22: 0 | J22: 0 | K22: 0 | L22: 0 | M22: 0 | N22: 0 | O22: 0
C23: Overtime | D23: @ | F23: 0 | G23: 0 | H23: 0 | I23: 0 | J23: 0 | K23: 0 | L23: 0 | M23: 0 | N23: 0 | O23: 0
C24: Subcontract | D24: @ | F24: 0 | G24: 0 | H24: 0 | I24: 0 | J24: 0 | K24: 0 | L24: 0 | M24: 0 | N24: 0 | O24: 0
C25: Hire/Layoff | O25: 0
C26: Inventory | D26: @ | E26: 5 | F26: 75 | G26: 125 | H26: 50 | I26: 0 | J26: 0 | K26: 0 | L26: 50 | M26: 50 | N26: 0 | O26: 350
C27: Back orders | D27: @ | E27: 10 | F27: 0 | G27: 0 | H27: 200 | I27: 800 | J27: 700 | K27: 300 | L27: 0 | M27: 300 | N27: 0 | O27: 2300
B28: Total | G28: 1445 | H28: 1570 | I28: 2120 | J28: 2020 | K28: 1560 | L28: 1310 | M28: 1610 | N28: 1260 | O28: 14290
F31: 1 | G31: 2 | H31: 3 | I31: 4 | J31: 5 | K31: 6 | L31: 7 | M31: 8 | N31: 9
B32: Cumulative Forecast | F32: 190 | G32: 420 | H32: 680 | I32: 960 | J32: 1170 | K32: 1340 | L32: 1500 | M32: 1760 | N32: 1940
B33: Cumulative Production | F33: 220 | G33: 440 | H33: 660 | I33: 880 | J33: 1100 | K33: 1310 | L33: 1520 | M33: 1730 | N33: 1940
B34: Ending Inventory | F34: 30 | G34: 20 | L34: 20
B35: Backlog | H35: 20 | I35: 80 | J35: 70 | K35: 30 | M35: 30
A38: 2. | B38: Aggregate Planning
F39: Number of periods: | G39: 8
B41: Period | F41: 1 | G41: 2 | H41: 3 | I41: 4 | J41: 5 | K41: 6 | L41: 7 | M41: 8 | N41: Total
B42: Forecast | F42: 1200 | G42: 1200 | H42: 1400 | I42: 3000 | J42: 1200 | K42: 1200 | L42: 1200 | M42: 1200 | N42: 11600
B43: Output
C44: Regular | F44: 1200 | G44: 1200 | H44: 1200 | I44: 1200 | J44: 1200 | K44: 1200 | L44: 1200 | M44: 1200 | N44: 9600
C45: Part Time | I45: 2000 | N45: 2000
C46: Overtime | N46: 0
C47: Subcontract | N47: 0
B48: Output - Forecast | F48: 0 | G48: 0 | H48: -200 | I48: 200 | J48: 0 | K48: 0 | L48: 0 | M48: 0 | N48: 0
B49: Inventory
C50: Beginning | G50: 0 | H50: 0 | I50: 0 | J50: 0 | K50: 0 | L50: 0 | M50: 0
C51: Ending | F51: 0 | G51: 0 | H51: 0 | I51: 0 | J51: 0 | K51: 0 | L51: 0 | M51: 0
C52: Average | F52: 0 | G52: 0 | H52: 0 | I52: 0 | J52: 0 | K52: 0 | L52: 0 | M52: 0 | N52: 0
B53: Backlog | F53: 0 | G53: 0 | H53: 200 | I53: 0 | J53: 0 | K53: 0 | L53: 0 | M53: 0 | N53: 200
B54: Costs:
C55: Regular | D55: @ | E55: 4 | F55: 4800 | G55: 4800 | H55: 4800 | I55: 4800 | J55: 4800 | K55: 4800 | L55: 4800 | M55: 4800 | N55: 38400
C56: Part Time | D56: @ | E56: 5 | F56: 0 | G56: 0 | H56: 0 | I56: 10000 | J56: 0 | K56: 0 | L56: 0 | M56: 0 | N56: 10000
C57: Overtime | D57: @ | F57: 0 | G57: 0 | H57: 0 | I57: 0 | J57: 0 | K57: 0 | L57: 0 | M57: 0 | N57: 0
C58: Subcontract | D58: @ | F58: 0 | G58: 0 | H58: 0 | I58: 0 | J58: 0 | K58: 0 | L58: 0 | M58: 0 | N58: 0
C59: Hire/Layoff | H59: 100 | N59: 100
C60: Inventory | D60: @ | F60: 0 | G60: 0 | H60: 0 | I60: 0 | J60: 0 | K60: 0 | L60: 0 | M60: 0 | N60: 0
C61: Back orders | D61: @ | E61: 1 | F61: 0 | G61: 0 | H61: 200 | I61: 0 | J61: 0 | K61: 0 | L61: 0 | M61: 0 | N61: 200
B62: Total | F62: 4800 | G62: 4800 | H62: 5100 | I62: 14800 | J62: 4800 | K62: 4800 | L62: 4800 | M62: 4800 | N62: 48700
F65: 1 | G65: 2 | H65: 3 | I65: 4 | J65: 5 | K65: 6 | L65: 7 | M65: 8
B66: Cumulative Forecast | F66: 1200 | G66: 2400 | H66: 3800 | I66: 6800 | J66: 8000 | K66: 9200 | L66: 10400 | M66: 11600
B67: Cumulative Production | F67: 1200 | G67: 2400 | H67: 3600 | I67: 6800 | J67: 8000 | K67: 9200 | L67: 10400 | M67: 11600
B68: Ending Inventory
B69: Backlog | H69: 200
A72: 3. | B72: Master Scheduling
C75: Week | F75: 0 | G75: 1 | H75: 2 | I75: 3 | J75: 4
C76: Forecast | G76: 70 | H76: 70 | I76: 70 | J76: 70
C77: Customer Orders
C78: (committed) | G78: 80 | H78: 50 | I78: 30 | J78: 10
C79: Projected on-hand
C80: inventory | G80: 20 | H80: 50 | I80: 80 | J80: 10
C81: MPS | G81: 100 | H81: 100 | I81: 100
C82: ATP | G82: 20 | H82: 50 | I82: 60
